Cogmind - Beta 14 @@@ ROGUE MODE // 2024.08.10 @ 21:24:58 Player: CONM Result: Destroyed by G-47 Trooper with Particle Gun Performance ------------- Evolutions (2) 1000 Regions Visited (4) 800 Robots Destroyed (48) 240 Value Destroyed (1186) 1186 Prototype IDs (3) 60 Alien Tech Used (0) 0 Bonus (33) 33 TOTAL SCORE: 3319 Bonus ------- High Alert Combat Kills 33 Cogmind --------- Core Integrity 0/550 Matter 110/300 Energy 100/100 System Corruption 2% Temperature Cool (15) Movement Core (300) Ox5 Location -8/Materials Parts ------- > --- POWER (1) -------- (None) > --- PROPULSION (4) --- (None) > --- UTILITY (4) ------ Medium Storage Unit > --- WEAPON (2) ------- Rocket Launcher Katana > --- INVENTORY (10) --- Light Deuterium Engine Large Battery (200) Advanced Weight Redist. System Improved Propulsion Shielding Hacking Suite Scythe Scythe Scythe Scythe Peak State ------------ > --- POWER ------------ Light Nuclear Core > --- PROPULSION ------- Improved Carbon-fiber Leg Improved Carbon-fiber Leg Improved Carbon-fiber Leg Improved Carbon-fiber Leg > --- UTILITY ---------- Cryofiber Web Improved Heat Sink Medium Storage Unit Hardened Medium Armor Plating > --- WEAPON ----------- Plasma Cannon Plasma Cannon > --- INVENTORY -------- Cryofiber Web Heat Sink Large Battery Weight Redist. System Grenade Launcher Rocket Launcher Scythe Scythe Scythe Scythe [Rating: 39] Favorites ----------- Power Light Nuclear Core Engine Ion Engine Power Core Light Nuclear Core Propulsion Improved Carbon-fiber Leg Treads Light Treads Leg Improved Carbon-fiber Leg Wheel Wheel Flight Unit Flight Unit Utility Small Storage Unit Device Structural Scanner Storage Small Storage Unit Protection Hardened Medium Armor Plating Weapon Plasma Cannon Energy Gun EM Pulse Gun Energy Cannon Plasma Cannon Ballistic Gun Light Assault Rifle Launcher Rocket Launcher Slashing Weapon Scythe Build | -11 -10 -9 -9 -8 ------- Run | Yrd Mat Mat Min Mat Slots Evolved 4 | . . 2 . 2 Power . | . . . . . Propulsion 2 | . . 2 . . Utility 2 | . . . . 2 Weapon . | . . . . . Parts Attached 55 | 8 4 8 6 29 Power 6 | 1 1 1 . 3 Engine 3 | 1 . . . 2 Core 3 | . 1 1 . 1 Reactor . | . . . . . Propulsion 15 | 4 1 1 3 6 Treads 2 | 2 . . . . Leg 9 | 2 1 1 . 5 Wheel 1 | . . . . 1 Hover . | . . . . . Flight 3 | . . . 3 . Utility 12 | 1 1 2 1 7 Device 7 | . 1 . 1 5 Storage 4 | 1 . 2 . 1 Processor . | . . . . . Hackware . | . . . . . Protection 1 | . . . . 1 Artifact . | . . . . . Weapon 22 | 2 1 4 2 13 Energy Gun 8 | 2 1 3 1 1 Energy Cannon 6 | . . . . 6 Ballistic Gun 1 | . . 1 . . Ballistic Cannon . | . . . . . Launcher 3 | . . . 1 2 Special Weapon . | . . . . . Impact Weapon . | . . . . . Slashing Weapon 4 | . . . . 4 Piercing Weapon . | . . . . . Special Melee Weapon . | . . . . . Unidentified Prototypes 1 | . . . . 1 Corrupted Parts 1 | . 1 . . . System Corruption 1 | . 1 . . . Parts Lost 18 | . 4 1 1 12 Power 3 | . 1 . . 2 Propulsion 7 | . 1 1 1 4 Utility 4 | . . . . 4 Weapon 4 | . 2 . . 2 Highest Loss Streak 8 | . 2 1 1 8 To Critical Strikes 1 | . . . . 1 Average Slot Usage (%) 82 | . 87 62 66 93 Engine 5 | . 8 . . 7 Core 4 | . 4 8 11 1 Leg 24 | . 28 12 6 32 Device 13 | . 4 11 11 18 Storage 10 | . 14 11 11 9 Protection 2 | . . . . 5 Energy Gun 10 | . 26 13 21 . Energy Cannon 6 | . . . . 13 Ballistic Gun 1 | . . 5 . . Slashing Weapon 1 | . . . . 2 Peak Build Rating 39 | 6 10 11 14 39 Average Rating 19 | 4 7 9 11 32 On Entrance 7 | . 6 5 11 14 Naked Turns . | . . . . . Heaviest Build 43 | 14 15 17 17 43 Greatest Support 78 | 40 20 20 18 78 Greatest Overweight (x) 5 | 4 2 2 5 4 Average Overweight (x) . | . . 1 . . Largest Inventory Capacity 15 | 8 8 15 8 10 Average Capacity 8 | 6 8 8 8 9 Most Carried 10 | 2 8 8 8 10 Average Carried 7 | 1 6 7 8 9 Final Capacity 10 | 8 8 8 8 10 Final Carried 9 | 2 8 8 8 9 Class Distribution -------------------- 100% | Mutant Dominant Class ---------------- Mutant | -10/Materials Mutant | -9/Materials Mutant | -9/Mines Mutant | -8/Materials Resources | -11 -10 -9 -9 -8 ----------- Run | Yrd Mat Mat Min Mat Matter Collected 877 | 244 276 37 84 236 Remotely . | . . . . . Salvage Created 1480 | . 315 46 155 964 Parts 97 | . 21 10 18 48 Haulers Intercepted 3 | . 1 . . 2 Recyclers Shooed . | . . . . . Parts Field Recycled . | . . . . . Retrieved Matter . | . . . . . Parts Self-Destructed . | . . . . . Prevented . | . . . . . Kills | -11 -10 -9 -9 -8 ------- Run | Yrd Mat Mat Min Mat Combat Hostiles Destroyed 33 | . 4 2 8 19 Melee 1 | . . . . 1 Guns 9 | . 3 2 4 . Cannons 10 | . . . . 10 AOE 11 | . 1 . 4 6 Classes Destroyed 11 | . 4 1 1 5 Worker 1 | . . . . 1 Builder 6 | . 1 . . 5 Tunneler 3 | . 1 1 . 1 Hauler 3 | . 1 . . 2 Recycler 1 | . . . 1 . Mechanic 1 | . . . . 1 Swarmer 12 | . . 2 8 2 Grunt 17 | . 4 . . 13 Brawler 1 | . . . . 1 Duelist 1 | . . . . 1 Sentry 2 | . . . . 2 Best Kill Streak 8 | . 3 2 4 8 Combat Bots Only 6 | . 3 1 4 6 Max Kills in Single Turn 3 | . 1 1 3 3 Gunslinging . | . . . . . Exploded 3 | . 1 . 3 2 Melee 1 | . . . . 1 Uniques/NPCs Destroyed . | . . . . . Combat | -11 -10 -9 -9 -8 -------- Run | Yrd Mat Mat Min Mat Hostile Shots Fired 240 | . 39 25 26 150 Missed 60 | . 10 8 4 38 Damage Taken 2781 | . 441 140 239 1961 Core 754 | . 55 25 122 552 Absorbed by Shields . | . . . . . Core Remaining (%) 80 | 100 78 . 63 . Volleys Fired 94 | . 20 5 14 55 Largest 2 | . 2 2 2 2 Hottest 160 | . 80 105 130 160 Shots Fired 176 | . 36 10 28 102 Gun 72 | . 36 10 26 . Cannon 87 | . . . . 87 Launcher 17 | . . . 2 15 Special . | . . . . . Kinetic 2 | . . 2 . . Thermal 118 | . . 5 26 87 Explosive 17 | . . . 2 15 Electromagnetic 39 | . 36 3 . . Robot Hit Streak 23 | . 23 2 7 14 Robot Miss Streak 5 | . 2 3 3 5 Penetration Max . | . . . . . Secondary Targets . | . . . . . Shots Hit Robots 115 | . 30 4 12 69 Core Hits 65 | . 14 4 9 38 Critical Kills 1 | . . . . 1 Critical Parts Destroyed . | . . . . . Critical Strikes 2 | . . 1 . 1 Burn 1 | . . 1 . . Meltdown 1 | . . . . 1 Melee Attacks 7 | . . . . 7 Impact . | . . . . . Slashing 7 | . . . . 7 Piercing . | . . . . . Sneak Attacks . | . . . . . Combat Hostiles . | . . . . . Follow-up Attacks . | . . . . . Damage Inflicted 3634 | . 470 72 331 2761 Guns 663 | . 402 72 189 . Cannons 1566 | . . . . 1566 Explosions 1337 | . 68 . 142 1127 Melee 68 | . . . . 68 Ramming . | . . . . . Kinetic 6 | . . 6 . . Thermal 1889 | . 68 66 189 1566 Explosive 1269 | . . . 142 1127 Electromagnetic 402 | . 402 . . . Impact . | . . . . . Slashing 68 | . . . . 68 Piercing . | . . . . . Highest Corruption 2 | . 1 . . 2 Average Corruption 1 | . 1 . . 2 Corruption Purged . | . . . . . Corruption Blocked . | . . . . . Effects 2 | . . . . 2 Message Errors 1 | . . . . 1 Heat Flow Errors 1 | . . . . 1 Overload Shots . | . . . . . Overflow Damage 80 | . . . . 80 Projectiles 35 | . . . . 35 Explosions 45 | . . . . 45 Melee . | . . . . . Knockbacks . | . . . . . Impact . | . . . . . Kinetic . | . . . . . Secondary . | . . . . . Self-Inflicted Damage 246 | . 74 . 41 131 Shots 9 | . 2 . 2 5 Rammed 1 | . . . 1 . Targets Rammed 1 | . . . 1 . Kicked . | . . . . . Crushed . | . . . . . Highest Temperature 462 | . 111 126 462 329 Average Temperature 101 | . 38 57 165 106 Received Heat Transfer 1218 | . 228 . . 990 Effects 2 | . . . 1 1 Shutdowns 1 | . . . 1 . Short Circuit 1 | . . . . 1 Siege Activations . | . . . . . Robots Corrupted . | . . . . . Combat Hostiles . | . . . . . Parts Fried . | . . . . . Impact Corruptions . | . . . . . Robots Melted 2 | . . . . 2 Combat Hostiles 2 | . . . . 2 Parts Melted 11 | . . . 1 10 Heat Transferred 3866 | . 100 222 444 3100 Parts Sabotaged . | . . . . . Parts Stolen . | . . . . . Parts Stripped . | . . . . . Power Chain Reactions 2 | . 2 . . . Alert | -11 -10 -9 -9 -8 ------- Run | Yrd Mat Mat Min Mat Peak Influence 491 | . 147 169 269 491 Initial 104 | . . 49 65 104 Average 163 | . 57 128 217 240 Maximum Alert Level 2 | . . . 1 2 Low Security (%) 73 | 100 100 100 47 48 Level 1 20 | . . . 52 38 Level 2 5 | . . . . 13 Level 3 . | . . . . . Level 4 . | . . . . . Level 5 . | . . . . . High Security . | . . . . . Max Security . | . . . . . Squads Dispatched 10 | . 2 . . 8 Investigation 1 | . . . . 1 Extermination . | . . . . . Reinforcement 6 | . 2 . . 4 Assault . | . . . . . Garrison 3 | . . . . 3 Intercept . | . . . . . Searches Triggered . | . . . . . Construction Impeded 2 | . . . . 2 Haulers Reinforced . | . . . . . Active Scanning Responses . | . . . . . Cargo Convoy Interrupts . | . . . . . Stealth | -11 -10 -9 -9 -8 --------- Run | Yrd Mat Mat Min Mat Distress Signals 5 | . 2 1 . 2 Communications Jammed . | . . . . . Distress Signals . | . . . . . Times Spotted 55 | . 12 11 8 24 Peak Tracking Total 6 | . 6 4 4 6 Tactical Retreats 2 | . 1 1 . . Traps | -11 -10 -9 -9 -8 ------- Run | Yrd Mat Mat Min Mat Traps Triggered . | . . . . . Indirectly . | . . . . . Trap Hack Attempts . | . . . . . Triggered . | . . . . . Disarmed . | . . . . . Reprogrammed . | . . . . . Reused . | . . . . . Traps Extracted . | . . . . . Installed . | . . . . . Triggered . | . . . . . Machines | -11 -10 -9 -9 -8 ---------- Run | Yrd Mat Mat Min Mat Machines Disabled 4 | . . . 1 3 Max in Single Turn 1 | . . . 1 1 Machines Repaired . | . . . . . Machines Dismantled . | . . . . . Machines Sabotaged . | . . . . . Overloaded Fab Kills . | . . . . . Hacking | -11 -10 -9 -9 -8 --------- Run | Yrd Mat Mat Min Mat Machines Accessed 3 | . 1 . . 2 Terminals 2 | . 1 . . 1 Fabricators . | . . . . . Repair Stations . | . . . . . Recycling Units 1 | . . . . 1 Scanalyzers . | . . . . . Garrison Access . | . . . . . Total Hacks 7 | . 1 . . 6 Successful 6 | . 1 . . 5 Failed 1 | . . . . 1 Catastrophic . | . . . . . Database Lockouts . | . . . . . Manual 2 | . 1 . . 1 Terminals 3 | . 1 . . 2 Fabricators . | . . . . . Repair Stations . | . . . . . Recycling Units 4 | . . . . 4 Scanalyzers . | . . . . . Garrison Access . | . . . . . Terminal Hacks 1 | . . . . 1 Prototype ID Bank 1 | . . . . 1 Fabricator Hacks . | . . . . . Repair Station Hacks . | . . . . . Recycling Unit Hacks 3 | . . . . 3 Report Inventory 3 | . . . . 3 Scanalyzer . | . . . . . Garrison Access Hacks . | . . . . . Unauthorized Hacks 2 | . 1 . . 1 Terminals 1 | . 1 . . . Botnet 1 | . 1 . . . Fabricators . | . . . . . Repair Stations . | . . . . . Recycling Units 1 | . . . . 1 Tunnel 1 | . . . . 1 Scanalyzers . | . . . . . Garrison Access . | . . . . . Data Cores Recovered . | . . . . . Used . | . . . . . Hacking Detections 1 | . . . . 1 Full Trace Events . | . . . . . Feedback Events . | . . . . . Feedback Blocked . | . . . . . Robot Schematics Acquired . | . . . . . Robots Built . | . . . . . Authchips . | . . . . . Time . | . . . . . Total Robot Build Rating . | . . . . . Part Schematics Acquired . | . . . . . Parts Built . | . . . . . Authchips . | . . . . . Time . | . . . . . Total Part Build Rating . | . . . . . Parts Repaired . | . . . . . Time . | . . . . . Parts Recycled . | . . . . . Recycled Matter . | . . . . . Retrieved Matter . | . . . . . Retrieved Components . | . . . . . Parts Scanalyzed . | . . . . . Part Schematics Acquired . | . . . . . Parts Damaged . | . . . . . Bothacking | -11 -10 -9 -9 -8 ------------ Run | Yrd Mat Mat Min Mat Used RIF Installer . | . . . . . Robots Hacked . | . . . . . Non-combat . | . . . . . Combat . | . . . . . Robot Hacks Applied . | . . . . . Relay Couplers Released . | . . . . . Fabnet Peak Effective % . | . . . . . Robots Rewired . | . . . . . Allies Hacked . | . . . . . Hacks Repelled . | . . . . . Allies | -11 -10 -9 -9 -8 -------- Run | Yrd Mat Mat Min Mat Total Allies . | . . . . . Largest Group . | . . . . . Highest-Rated Group . | . . . . . Highest-Rated Ally . | . . . . . Total Orders . | . . . . . Ally Attacks . | . . . . . Total Damage . | . . . . . Kills . | . . . . . Allies Corrupted . | . . . . . Allies Melted . | . . . . . Intel | -11 -10 -9 -9 -8 ------- Run | Yrd Mat Mat Min Mat Robot Analysis Total . | . . . . . Derelict Logs Recovered . | . . . . . Drone Launches . | . . . . . Drone Recoveries . | . . . . . Exploration | -11 -10 -9 -9 -8 ------------- Run | Yrd Mat Mat Min Mat Turns Passed 1618 | 70 351 358 116 723 Spaces Moved 881 | 49 201 190 49 392 Core 73 | 18 2 46 4 3 Treads 4 | 4 . . . . Legs 740 | 27 199 144 16 354 Wheels 14 | . . . . 14 Hover . | . . . . . Flight 50 | . . . 29 21 Fastest Speed 34 | 50 120 120 34 34 Average Speed 132 | 113 134 170 126 115 Slowest Speed 360 | 250 190 190 360 250 Overloaded Moves . | . . . . . Propulsion Burnouts . | . . . . . Robots Hopped . | . . . . . Cave-ins Triggered . | . . . . . Exploration Rate (%) 20 | 3 37 15 10 37 Regions Visited 4 Branch Regions 1 Pre-discovered Areas 1 | . . . . 1 Known Exits Taken . | . . . . . Unknown Exits Taken 4 | 1 1 1 1 . Scrap Searched . | . . . . . Spaces Dug 11 | . . . 10 1 Terrain Destroyed 97 | . 10 . 22 65 Melee 1 | . . . . 1 Projectile 20 | . . . . 20 AOE 76 | . 10 . 22 44 Terrain Rammed . | . . . . . Walls Destroyed . | . . . . . Machines Disabled . | . . . . . Actions | -11 -10 -9 -9 -8 --------- Run | Yrd Mat Mat Min Mat Total 1143 | 60 245 217 69 552 Wait 47 | . 13 3 . 31 Move 877 | 48 200 189 48 392 Hop . | . . . . . Pick Up 31 | 2 7 5 . 17 Fast Attach 25 | 8 1 3 3 10 Attach 8 | . 1 2 . 5 Detach . | . . . . . Swap 22 | . 2 3 3 14 Drop 31 | 2 1 7 . 21 Fire 94 | . 20 5 14 55 Melee 7 | . . . . 7 Ram 1 | . . . 1 . Kick . | . . . . . Crush . | . . . . . Escape Stasis . | . . . . . Rewire . | . . . . . Trap . | . . . . . Miscellaneous . | . . . . . Route ------- -11/Scrapyard -10/Materials -9/Materials -9/Mines -8/Materials History --------- Turn | Location | Event 7 | -11/Scrapyard | Discovered new exit (range 15) 71 | -11/Scrapyard | Entered Materials 206 | -10/Materials | Discovered new exit (range 14) 328 | -10/Materials | Build established: Mutant 422 | -10/Materials | Entered another Materials area 422 | -9/Materials | Evolved 2 slots: Propulsion x2 610 | -9/Materials | Discovered new exit (range 6) 780 | -9/Materials | Entered Mines 827 | -9/Mines | Met a Derelict bent on vengeance 833 | -9/Mines | Discovered new exit (range 9) 896 | -9/Mines | Assembled infested the area 896 | -9/Mines | Entered Materials 896 | -8/Materials | Evolved 2 slots: Utility x2 1263 | -8/Materials | Garrison activated, responded to threat 1582 | -8/Materials | Core integrity fell below 50% 1601 | -8/Materials | Core integrity fell below 20% 1619 | -8/Materials | Destroyed by G-47 Trooper with Particle Gun Last Messages --------------- 01591_ Imp. Heat Sink destroyed. 01591_ U-05 Engineer lays Concrete. 01592_ Acquired Katana. 01592_ U-05 Engineer lays Concrete. 01594_ U-05 Engineer builds a Wall. 01595_ U-05 Engineer lays Concrete. 01596_ Acquired Wheel. 01597_ U-05 Engineer lays Concrete. 01602_ The unstable cave ceiling collapses. 01602_ U-05 Engineer lays Concrete. 01610_ Wheel destroyed. 01610_ U-05 Engineer lays Concrete. 01612_ Critical hit (Burn: +37). 01612_ Processing Tank disabled. 01612_ A-02 Transporter destroyed. 01612_ U-05 Engineer lays Concrete. 01617_ Critical hit (Burn: +37). 01618_ U-05 Engineer lays Concrete. 01619_ ALERT: Construction progress impeded, dispatching reinforcements to local area. Map ----- +----------------------------------------------------+ | | | | | | | | | | | | | ????????????????????????????## #######"####### | | ???????????????????????????## " # | | ???????????????????????????# | | ?????????????????????????### ! | | ?????????????????????????# == [ % | | ????????????????????????## % # # # | | ?????????????????######## = [% | | ????????????????? # | | ???????????????? =[= u #+%### ###+# | | ???????????????? ![%[ u ## | | ??????????????? ][! # # #### | | ???????????????"" """ " ### #??? | | ??????????????""" """ T #??? | | ????????????""""" """ g " #??? | | ???????????? g #??? | | ??????????? #### | | ??????????? | | ?????????? ! | | ?????????? | | ?????????? @ #####+### | | ?????????????# #???????? | | ?????????????# #### ################ #???????? | | ??????????????????# ????????????????# #???????? | | ??????????????????# ?????????????????# #???????? | | ?????????????????????????????????????# #???????? | | ?????????????????????????????????????????????????? | | ?????????????????????????????????????????????????? | | ?????????????????????????????????????????????????? | | ?????????????????????????????????????????????????? | | ?????????????????????????????????????????????????? | | ?????????????????????????????????????????????????? | | ?????????????????????????????????????????????????? | | ?????????????????????????????????????????????????? | | ?????????????????????????????????????????????????? | | ?????????????????????????????????????????????????? | | ?????????????????????????????????????????????????? | | ?????????????????????????????????????????????????? | | ?????????????????????????????????????????????????? | | ?????????????????????????????????????????????????? | | ?????????????????????????????????????????????????? | | ?????????????????????????????????????????????????? | | ?????????????????????????????????????????????????? | | ?????????????????????????????????????????????????? | | ?????????????????????????????????????????????????? | +----------------------------------------------------+ Best States ------------- Heat Dissipation 59 Energy Generation 14 Energy Capacity 275 Matter Stores 300 Matter Capacity 300 Sight Range 16 Terrain Scan Density 10 Additional Mass Support 6 Base Temperature (-) 100 Armor Coverage 225 Evasion (%) 63 Recoil Reduction 2 Item Schematics ----------------- None Robot Schematics ------------------ None Fabricated ------------ Nothing Alien Tech Used ----------------- None Achievements -------------- Brute Force Challenges ------------ None Game ------ Seed SpreadPitchforkMembrane Manual? 0 Play Time 00:26:10 Cumulative 56.3 hours Start 2024.08.10 @ 19:52:12 End 2024.08.10 @ 21:24:58 Sessions 3 Manual Loads 0 Difficulty Rogue Special Mode None Game No. 85 Rogue 85 Adventurer 0 Explorer 0 Win Type - Total 0 Types 0/0/0/0/0/0/0/0/0 Lore% 19 Gallery% 32 Achievement% 37 Wizard Run 0 Options --------- Layout 0 ASCII 0 Keyboard 0 Movement Arrows Keybinds 0 Fullscreen 2 Font 18/SmallcapsGlow Map View 76x50 Zoom Use 0% Tactical HUD 1 Map Filters NONE Filters NONE Steam 1 RUN: 4e97c6db-5844-4ec5-bd8c-c1f59e11dba5